[Event "Early-Titled-Tuesday-Blitz-January-30-2024"]
[Site "Chess.com"]
[Date "2024.01.30"]
[Round "11"]
[White "VitaliyChayka"]
[Black "DefiantChair"]
[Result "0-1"]
[WhiteElo "2441"]
[BlackElo "2598"]
[TimeControl "180+1"]
[EndTime "10:11:59 PST"]
[Termination "DefiantChair won on time"]

1. d4 {[%clk 0:02:59.3]} 1... Nf6 {[%clk 0:02:59.5]} 2. Bf4 {[%clk 0:03:00]}
2... d5 {[%clk 0:02:59.4]} 3. e3 {[%clk 0:03:00.8]} 3... c5 {[%clk 0:02:59.3]}
4. dxc5 {[%clk 0:03:01.7]} 4... Nc6 {[%clk 0:02:58.6]} 5. Bb5 {[%clk 0:03:00.9]}
5... e6 {[%clk 0:02:56.6]} 6. b4 {[%clk 0:03:00.8]} 6... Bd7 {[%clk 0:02:48.9]}
7. c3 {[%clk 0:03:00.7]} 7... a5 {[%clk 0:02:48.7]} 8. Qb3 {[%clk 0:03:00.5]}
8... Ne4 {[%clk 0:02:40.8]} 9. f3 {[%clk 0:03:00.5]} 9... g5 {[%clk 0:02:15.6]}
10. Bxc6 {[%clk 0:02:57.4]} 10... bxc6 {[%clk 0:02:13.4]} 11. Be5 {[%clk
0:02:57.4]} 11... f6 {[%clk 0:02:12.1]} 12. Bd4 {[%clk 0:02:54]} 12... e5 {[%clk
0:02:12.5]} 13. fxe4 {[%clk 0:02:53.6]} 13... exd4 {[%clk 0:02:12.8]} 14. exd5
{[%clk 0:02:32.4]} 14... dxe3 {[%clk 0:02:12.3]} 15. d6 {[%clk 0:02:31.8]} 15...
axb4 {[%clk 0:02:07.6]} 16. cxb4 {[%clk 0:02:31.6]} 16... Bg7 {[%clk 0:01:59.1]}
17. Nf3 {[%clk 0:02:30.1]} 17... f5 {[%clk 0:01:55.3]} 18. Nc3 {[%clk
0:01:46.9]} 18... Qf6 {[%clk 0:01:54.1]} 19. Rc1 {[%clk 0:01:46.3]} 19... Be6
{[%clk 0:01:53.2]} 20. Qc2 {[%clk 0:01:18.6]} 20... Ra3 {[%clk 0:01:49.9]} 21.
Ne2 {[%clk 0:01:14.7]} 21... Rxa2 {[%clk 0:01:47.6]} 22. Qd3 {[%clk 0:01:09.3]}
22... f4 {[%clk 0:01:38.3]} 23. O-O {[%clk 0:01:05.3]} 23... O-O {[%clk
0:01:31.3]} 24. b5 {[%clk 0:00:55.2]} 24... Rd2 {[%clk 0:01:24.7]} 25. Nxd2
{[%clk 0:00:54.6]} 25... exd2 {[%clk 0:01:24]} 26. Qxd2 {[%clk 0:00:55]} 26...
cxb5 {[%clk 0:01:23]} 27. c6 {[%clk 0:00:55.3]} 27... Bc4 {[%clk 0:01:19.5]} 28.
Rxc4 {[%clk 0:00:51.2]} 28... bxc4 {[%clk 0:01:20.4]} 29. Qd5+ {[%clk
0:00:51.9]} 29... Kh8 {[%clk 0:01:20.1]} 30. c7 {[%clk 0:00:49]} 30... c3 {[%clk
0:01:16.4]} 31. Qc6 {[%clk 0:00:39]} 31... Qe6 {[%clk 0:01:11.9]} 32. Nc1 {[%clk
0:00:29.5]} 32... f3 {[%clk 0:01:06.1]} 33. gxf3 {[%clk 0:00:11]} 33... Bd4+
{[%clk 0:00:42.9]} 34. Kg2 {[%clk 0:00:10.8]} 34... g4 {[%clk 0:00:41.8]} 35.
Qe4 {[%clk 0:00:02]} 35... gxf3+ {[%clk 0:00:39.9]} 36. Rxf3 {[%clk 0:00:02]}
36... Qxe4 {[%clk 0:00:39.6]} 0-1

[Event "Early-Titled-Tuesday-Blitz-January-30-2024"]
[Site "Chess.com"]
[Date "2024.01.30"]
[Round "11"]
[White "BeardedNM"]
[Black "FLYD"]
[Result "1-0"]
[WhiteElo "2187"]
[BlackElo "2049"]
[TimeControl "180+1"]
[EndTime "10:11:59 PST"]
[Termination "BeardedNM won by resignation"]

1. e4 {[%clk 0:03:00.9]} 1... c6 {[%clk 0:02:55.2]} 2. d4 {[%clk 0:03:00.5]}
2... d5 {[%clk 0:02:56.1]} 3. e5 {[%clk 0:03:01.2]} 3... c5 {[%clk 0:02:55.5]}
4. dxc5 {[%clk 0:03:00.6]} 4... e6 {[%clk 0:02:56]} 5. Nf3 {[%clk 0:03:00.1]}
5... Bxc5 {[%clk 0:02:56.2]} 6. Bd3 {[%clk 0:02:59.6]} 6... Nc6 {[%clk
0:02:56.7]} 7. a3 {[%clk 0:02:59.5]} 7... Nge7 {[%clk 0:02:57.1]} 8. b4 {[%clk
0:02:59.2]} 8... Bb6 {[%clk 0:02:57.8]} 9. O-O {[%clk 0:02:59.4]} 9... Ng6
{[%clk 0:02:57.6]} 10. Re1 {[%clk 0:02:59.7]} 10... a6 {[%clk 0:02:56.2]} 11. g3
{[%clk 0:02:38.6]} 11... Qc7 {[%clk 0:02:55]} 12. Bb2 {[%clk 0:02:38.1]} 12...
O-O {[%clk 0:02:41.2]} 13. h4 {[%clk 0:02:37.8]} 13... a5 {[%clk 0:02:39.7]} 14.
b5 {[%clk 0:02:35.1]} 14... Nd8 {[%clk 0:02:32.2]} 15. h5 {[%clk 0:02:16.5]}
15... Ne7 {[%clk 0:02:31.3]} 16. h6 {[%clk 0:02:16.2]} 16... g6 {[%clk
0:02:28.4]} 17. Nh2 {[%clk 0:02:06.3]} 17... Nf5 {[%clk 0:02:25.8]} 18. Ng4
{[%clk 0:01:58.7]} 18... Nxg3 {[%clk 0:02:18.1]} 19. Qf3 {[%clk 0:01:44.4]}
19... Nf5 {[%clk 0:02:14.1]} 20. Qf4 {[%clk 0:01:34.7]} 20... Qe7 {[%clk
0:01:55.6]} 21. Nf6+ {[%clk 0:01:33.2]} 21... Kh8 {[%clk 0:01:55.4]} 22. Bxf5
{[%clk 0:01:33.3]} 22... exf5 {[%clk 0:01:41.2]} 23. e6 {[%clk 0:01:11.9]} 23...
Nxe6 {[%clk 0:01:05.1]} 24. Nxd5+ {[%clk 0:01:10.1]} 24... f6 {[%clk 0:01:02.3]}
25. Qh4 {[%clk 0:00:46.9]} 25... g5 {[%clk 0:00:56.8]} 26. Nxe7 {[%clk
0:00:20.1]} 26... gxh4 {[%clk 0:00:54.8]} 27. Nxc8 {[%clk 0:00:20.6]} 27...
Raxc8 {[%clk 0:00:36.2]} 28. Rxe6 {[%clk 0:00:20.6]} 28... Bxf2+ {[%clk
0:00:35.2]} 29. Kxf2 {[%clk 0:00:19.5]} 29... Rxc2+ {[%clk 0:00:36.1]} 30. Re2
{[%clk 0:00:19.6]} 30... Rfc8 {[%clk 0:00:32.1]} 31. Bxf6+ {[%clk 0:00:17.5]}
31... Kg8 {[%clk 0:00:31.9]} 32. Nd2 {[%clk 0:00:16.2]} 32... Kf7 {[%clk
0:00:30.4]} 33. Bxh4 {[%clk 0:00:15.3]} 33... f4 {[%clk 0:00:27.8]} 34. Rg1
{[%clk 0:00:15.2]} 34... f3 {[%clk 0:00:23.3]} 35. Rg7+ {[%clk 0:00:15.1]} 35...
Kf8 {[%clk 0:00:23.5]} 36. Be7+ {[%clk 0:00:14.6]} 36... Ke8 {[%clk 0:00:24]}
37. Nxf3 {[%clk 0:00:14.7]} 37... Rxe2+ {[%clk 0:00:23.7]} 38. Kxe2 {[%clk
0:00:15.1]} 38... Rc2+ {[%clk 0:00:23.9]} 39. Nd2 {[%clk 0:00:15.2]} 39... Rc7
{[%clk 0:00:21.3]} 40. Rxh7 {[%clk 0:00:14.9]} 1-0

[Event "Early-Titled-Tuesday-Blitz-January-30-2024"]
[Site "Chess.com"]
[Date "2024.01.30"]
[Round "11"]
[White "Trojan-Knight"]
[Black "Ron_Weasley_Chess"]
[Result "1-0"]
[WhiteElo "2636"]
[BlackElo "2424"]
[TimeControl "180+1"]
[EndTime "10:12:00 PST"]
[Termination "Trojan-Knight won by resignation"]

1. d4 {[%clk 0:01:32.5]} 1... Nf6 {[%clk 0:02:59.1]} 2. c4 {[%clk 0:01:31.9]}
2... c5 {[%clk 0:02:55.4]} 3. d5 {[%clk 0:01:31.8]} 3... b5 {[%clk 0:02:55]} 4.
cxb5 {[%clk 0:01:32.3]} 4... a6 {[%clk 0:02:55.5]} 5. bxa6 {[%clk 0:01:32.5]}
5... g6 {[%clk 0:02:56.2]} 6. Nc3 {[%clk 0:01:32.1]} 6... Bg7 {[%clk 0:02:56.7]}
7. e4 {[%clk 0:01:32]} 7... O-O {[%clk 0:02:56.8]} 8. a7 {[%clk 0:01:29.8]} 8...
Rxa7 {[%clk 0:02:56.2]} 9. Nf3 {[%clk 0:01:29.9]} 9... d6 {[%clk 0:02:55.5]} 10.
Be2 {[%clk 0:01:26.2]} 10... Ba6 {[%clk 0:02:54.5]} 11. O-O {[%clk 0:01:24.4]}
11... Nbd7 {[%clk 0:02:55]} 12. a4 {[%clk 0:01:22.1]} 12... Qa8 {[%clk
0:02:53.8]} 13. Ra3 {[%clk 0:01:19.6]} 13... Rb8 {[%clk 0:02:52.7]} 14. Bb5
{[%clk 0:01:07.2]} 14... Ne8 {[%clk 0:02:44.5]} 15. Bxa6 {[%clk 0:00:53.5]}
15... Rxa6 {[%clk 0:02:44.5]} 16. Nb5 {[%clk 0:00:54.4]} 16... Rb7 {[%clk
0:02:35.3]} 17. Nd2 {[%clk 0:00:45.6]} 17... Nc7 {[%clk 0:02:28.6]} 18. Nxc7
{[%clk 0:00:45]} 18... Rxc7 {[%clk 0:02:29.5]} 19. Nc4 {[%clk 0:00:43.3]} 19...
Nb6 {[%clk 0:02:29.2]} 20. Qc2 {[%clk 0:00:31.8]} 20... Nxa4 {[%clk 0:02:21]}
21. e5 {[%clk 0:00:16.5]} 21... Rca7 {[%clk 0:01:59.2]} 22. b3 {[%clk
0:00:14.8]} 22... Nb6 {[%clk 0:01:59.8]} 23. Rxa6 {[%clk 0:00:11.5]} 23... Rxa6
{[%clk 0:02:00.7]} 24. e6 {[%clk 0:00:09.4]} 24... fxe6 {[%clk 0:01:52.8]} 25.
dxe6 {[%clk 0:00:08.5]} 25... Ra2 {[%clk 0:01:52.7]} 26. Qd3 {[%clk 0:00:06.8]}
26... Qd5 {[%clk 0:01:47.4]} 27. Qh3 {[%clk 0:00:03]} 27... Nxc4 {[%clk
0:01:45.6]} 28. bxc4 {[%clk 0:00:03.9]} 28... Qxc4 {[%clk 0:01:46.5]} 29. Bg5
{[%clk 0:00:04.8]} 29... Ra1 {[%clk 0:01:42.1]} 30. Rxa1 {[%clk 0:00:02.5]}
30... Bxa1 {[%clk 0:01:43]} 31. g3 {[%clk 0:00:01.7]} 31... Bf6 {[%clk
0:01:35.3]} 32. Bxf6 {[%clk 0:00:01.7]} 32... exf6 {[%clk 0:01:36.2]} 33. e7
{[%clk 0:00:02.2]} 33... Qc1+ {[%clk 0:00:40.4]} 34. Kg2 {[%clk 0:00:02.7]}
34... Qe1 {[%clk 0:00:24.2]} 35. Qd7 {[%clk 0:00:03.4]} 35... Kg7 {[%clk
0:00:24.8]} 36. e8=Q+ {[%clk 0:00:03.3]} 1-0

[Event "Early-Titled-Tuesday-Blitz-January-30-2024"]
[Site "Chess.com"]
[Date "2024.01.30"]
[Round "11"]
[White "sokidze"]
[Black "Crazy_girl99"]
[Result "1-0"]
[WhiteElo "2841"]
[BlackElo "2619"]
[TimeControl "180+1"]
[EndTime "10:12:02 PST"]
[Termination "sokidze won by checkmate"]

1. d4 {[%clk 0:03:00.9]} 1... Nf6 {[%clk 0:02:54.6]} 2. c4 {[%clk 0:03:01.3]}
2... e6 {[%clk 0:02:54.6]} 3. Nf3 {[%clk 0:03:01.8]} 3... d5 {[%clk 0:02:54.4]}
4. g3 {[%clk 0:03:02.3]} 4... Be7 {[%clk 0:02:53.8]} 5. Bg2 {[%clk 0:03:02.8]}
5... O-O {[%clk 0:02:54.6]} 6. Qc2 {[%clk 0:03:01.9]} 6... c6 {[%clk 0:02:54]}
7. O-O {[%clk 0:03:01.2]} 7... dxc4 {[%clk 0:02:54.4]} 8. Qxc4 {[%clk
0:02:56.5]} 8... b5 {[%clk 0:02:54.3]} 9. Qc2 {[%clk 0:02:56.6]} 9... Bb7 {[%clk
0:02:53.8]} 10. Nc3 {[%clk 0:02:46]} 10... Nbd7 {[%clk 0:02:52.9]} 11. Rd1
{[%clk 0:02:43.9]} 11... Rc8 {[%clk 0:02:52.8]} 12. Ne5 {[%clk 0:02:21]} 12...
Qb6 {[%clk 0:02:44.2]} 13. Bg5 {[%clk 0:02:12.1]} 13... Rfd8 {[%clk 0:02:41.3]}
14. Nxd7 {[%clk 0:02:01.3]} 14... Rxd7 {[%clk 0:02:39.3]} 15. e3 {[%clk
0:01:42.6]} 15... h6 {[%clk 0:02:38]} 16. Bxf6 {[%clk 0:01:41.1]} 16... Bxf6
{[%clk 0:02:38.9]} 17. Ne4 {[%clk 0:01:37.3]} 17... Be7 {[%clk 0:02:39.2]} 18.
Nc5 {[%clk 0:01:37.2]} 18... Rdd8 {[%clk 0:02:26.3]} 19. b4 {[%clk 0:01:34.6]}
19... a5 {[%clk 0:02:26]} 20. a3 {[%clk 0:01:34.7]} 20... axb4 {[%clk
0:02:21.4]} 21. axb4 {[%clk 0:01:34.9]} 21... Bd6 {[%clk 0:02:06.3]} 22. f4
{[%clk 0:01:28.1]} 22... Bxc5 {[%clk 0:01:44.6]} 23. dxc5 {[%clk 0:01:23.5]}
23... Qc7 {[%clk 0:01:44.9]} 24. Rxd8+ {[%clk 0:01:06.9]} 24... Rxd8 {[%clk
0:01:45.8]} 25. Rd1 {[%clk 0:01:07.5]} 25... Rxd1+ {[%clk 0:01:41.2]} 26. Qxd1
{[%clk 0:01:08.4]} 26... Kf8 {[%clk 0:01:41.7]} 27. e4 {[%clk 0:00:49.4]} 27...
e5 {[%clk 0:01:36.4]} 28. fxe5 {[%clk 0:00:47]} 28... Qxe5 {[%clk 0:01:34.1]}
29. Qd8+ {[%clk 0:00:45.9]} 29... Qe8 {[%clk 0:01:33.5]} 30. Qd6+ {[%clk
0:00:46.3]} 30... Kg8 {[%clk 0:01:28.4]} 31. e5 {[%clk 0:00:46.6]} 31... g6
{[%clk 0:01:02.8]} 32. h4 {[%clk 0:00:44]} 32... Kh7 {[%clk 0:00:54.2]} 33. Qc7
{[%clk 0:00:38.4]} 33... Ba8 {[%clk 0:00:40.4]} 34. Bh3 {[%clk 0:00:37]} 34...
Kg7 {[%clk 0:00:28.7]} 35. e6 {[%clk 0:00:26.7]} 35... Kf8 {[%clk 0:00:16.8]}
36. Qd6+ {[%clk 0:00:20.1]} 36... Qe7 {[%clk 0:00:15.3]} 37. Qb8+ {[%clk
0:00:20.5]} 37... Qe8 {[%clk 0:00:15]} 38. e7+ {[%clk 0:00:21]} 38... Kxe7
{[%clk 0:00:14.5]} 39. Qd6# {[%clk 0:00:21]} 1-0

[Event "Early-Titled-Tuesday-Blitz-January-30-2024"]
[Site "Chess.com"]
[Date "2024.01.30"]
[Round "11"]
[White "JuniorJumper"]
[Black "IlanSchnaider"]
[Result "0-1"]
[WhiteElo "2534"]
[BlackElo "2672"]
[TimeControl "180+1"]
[EndTime "10:12:02 PST"]
[Termination "IlanSchnaider won by checkmate"]

1. b3 {[%clk 0:03:00.9]} 1... e5 {[%clk 0:02:57.4]} 2. Bb2 {[%clk 0:03:01.4]}
2... Nc6 {[%clk 0:02:56.5]} 3. e3 {[%clk 0:03:02.1]} 3... d5 {[%clk 0:02:57]} 4.
Bb5 {[%clk 0:03:01.4]} 4... Ne7 {[%clk 0:02:56.6]} 5. c4 {[%clk 0:02:58.7]} 5...
Be6 {[%clk 0:02:49.4]} 6. Nf3 {[%clk 0:02:38.7]} 6... a6 {[%clk 0:02:47.5]} 7.
Bxc6+ {[%clk 0:02:35]} 7... Nxc6 {[%clk 0:02:48.4]} 8. cxd5 {[%clk 0:02:27.6]}
8... Bxd5 {[%clk 0:02:47.7]} 9. Nc3 {[%clk 0:02:27]} 9... Be6 {[%clk 0:02:29.2]}
10. O-O {[%clk 0:02:25]} 10... Be7 {[%clk 0:02:15.4]} 11. d4 {[%clk 0:02:16]}
11... exd4 {[%clk 0:02:12.2]} 12. exd4 {[%clk 0:02:16.9]} 12... Bg4 {[%clk
0:02:11.7]} 13. d5 {[%clk 0:02:15.8]} 13... Ne5 {[%clk 0:02:08]} 14. Re1 {[%clk
0:02:11.3]} 14... Bxf3 {[%clk 0:01:41.5]} 15. gxf3 {[%clk 0:02:12.2]} 15... Ng6
{[%clk 0:01:42.2]} 16. Ne4 {[%clk 0:01:46.7]} 16... O-O {[%clk 0:01:39.7]} 17.
Qd4 {[%clk 0:01:47.3]} 17... f6 {[%clk 0:01:35.9]} 18. Nc5 {[%clk 0:01:38.7]}
18... Bxc5 {[%clk 0:01:32.4]} 19. Qxc5 {[%clk 0:01:39.6]} 19... Qd7 {[%clk
0:01:33.1]} 20. Re4 {[%clk 0:01:23.9]} 20... Qh3 {[%clk 0:01:29]} 21. Qxc7
{[%clk 0:00:56.6]} 21... Qxf3 {[%clk 0:01:10.1]} 22. Rae1 {[%clk 0:00:54.7]}
22... Rac8 {[%clk 0:00:49.6]} 23. Qg3 {[%clk 0:00:53]} 23... Qf5 {[%clk
0:00:48.9]} 24. d6 {[%clk 0:00:44.3]} 24... Rfd8 {[%clk 0:00:46.1]} 25. R1e2
{[%clk 0:00:28.4]} 25... h5 {[%clk 0:00:30.1]} 26. h4 {[%clk 0:00:27.8]} 26...
Kh7 {[%clk 0:00:26.2]} 27. Bd4 {[%clk 0:00:25.9]} 27... Rc6 {[%clk 0:00:20.4]}
28. Be3 {[%clk 0:00:05.3]} 28... Qxe4 {[%clk 0:00:18.4]} 29. Rd2 {[%clk
0:00:05.2]} 29... Rc1+ {[%clk 0:00:16.6]} 30. Rd1 {[%clk 0:00:02.2]} 30... Rxd1+
{[%clk 0:00:16.9]} 31. Kh2 {[%clk 0:00:02.2]} 31... Qh1# {[%clk 0:00:17.8]} 0-1

[Event "Early-Titled-Tuesday-Blitz-January-30-2024"]
[Site "Chess.com"]
[Date "2024.01.30"]
[Round "11"]
[White "vasblesk"]
[Black "blitis"]
[Result "1-0"]
[WhiteElo "2756"]
[BlackElo "2608"]
[TimeControl "180+1"]
[EndTime "10:12:04 PST"]
[Termination "vasblesk won by resignation"]

1. d4 {[%clk 0:03:00.9]} 1... g6 {[%clk 0:02:58.6]} 2. Nf3 {[%clk 0:02:59.1]}
2... f5 {[%clk 0:02:58.7]} 3. g3 {[%clk 0:02:57.3]} 3... Nf6 {[%clk 0:02:58.9]}
4. Bg2 {[%clk 0:02:58]} 4... Bg7 {[%clk 0:02:59.5]} 5. O-O {[%clk 0:02:58.7]}
5... O-O {[%clk 0:03:00.2]} 6. c4 {[%clk 0:02:59.1]} 6... d6 {[%clk 0:03:00.7]}
7. Nc3 {[%clk 0:02:59.5]} 7... Qe8 {[%clk 0:03:01.2]} 8. d5 {[%clk 0:02:51.9]}
8... Na6 {[%clk 0:03:00.8]} 9. Nd4 {[%clk 0:02:51.8]} 9... Nc5 {[%clk
0:03:00.6]} 10. b4 {[%clk 0:02:49.5]} 10... Nfe4 {[%clk 0:02:58]} 11. Nxe4
{[%clk 0:02:37.1]} 11... Nxe4 {[%clk 0:02:58.9]} 12. Bb2 {[%clk 0:02:37.7]}
12... c5 {[%clk 0:02:39.4]} 13. dxc6 {[%clk 0:02:34.7]} 13... bxc6 {[%clk
0:02:40.3]} 14. Qc2 {[%clk 0:02:34.4]} 14... e5 {[%clk 0:02:33.4]} 15. Nb3
{[%clk 0:02:30.5]} 15... d5 {[%clk 0:02:20.8]} 16. b5 {[%clk 0:02:27.2]} 16...
Be6 {[%clk 0:02:12.6]} 17. cxd5 {[%clk 0:02:06.4]} 17... cxd5 {[%clk 0:02:08.4]}
18. a4 {[%clk 0:02:06.8]} 18... Rc8 {[%clk 0:02:04.6]} 19. Qd3 {[%clk 0:02:04]}
19... d4 {[%clk 0:01:54.8]} 20. Na5 {[%clk 0:02:01.6]} 20... Bd5 {[%clk
0:01:44.2]} 21. Rfc1 {[%clk 0:01:51.5]} 21... Qf7 {[%clk 0:01:38.2]} 22. Nc6
{[%clk 0:01:46.7]} 22... Kh8 {[%clk 0:01:25.3]} 23. e3 {[%clk 0:01:25.5]} 23...
Nc5 {[%clk 0:01:20.9]} 24. Rxc5 {[%clk 0:01:20.2]} 24... Bxg2 {[%clk 0:01:20.3]}
25. Kxg2 {[%clk 0:01:17.8]} 25... e4 {[%clk 0:01:13.6]} 26. Qc4 {[%clk
0:01:16.5]} 26... d3 {[%clk 0:01:10.3]} 27. Qxf7 {[%clk 0:01:14.4]} 27... Rxf7
{[%clk 0:01:10]} 28. Bxg7+ {[%clk 0:01:14.2]} 28... Kxg7 {[%clk 0:01:09.9]} 29.
Kf1 {[%clk 0:01:13]} 29... h5 {[%clk 0:00:58.3]} 30. h4 {[%clk 0:01:10.8]} 30...
Rb7 {[%clk 0:00:52.6]} 31. a5 {[%clk 0:01:01.8]} 31... g5 {[%clk 0:00:20.5]} 32.
hxg5 {[%clk 0:00:58.6]} 32... h4 {[%clk 0:00:20.5]} 33. gxh4 {[%clk 0:00:56.2]}
33... Rh8 {[%clk 0:00:20.4]} 34. Nd4 {[%clk 0:00:56.3]} 34... Kg6 {[%clk
0:00:17.7]} 35. Rc6+ {[%clk 0:00:53.1]} 35... Kh5 {[%clk 0:00:17.1]} 36. Nxf5
{[%clk 0:00:51.4]} 36... Kg4 {[%clk 0:00:17.6]} 37. Ng3 {[%clk 0:00:47]} 37...
Rxh4 {[%clk 0:00:11.9]} 38. Kg2 {[%clk 0:00:46.2]} 38... Rbh7 {[%clk 0:00:11.5]}
39. Rh6 {[%clk 0:00:44.9]} 39... Kxg5 {[%clk 0:00:11.8]} 40. Rxh7 {[%clk
0:00:42.4]} 40... Rxh7 {[%clk 0:00:11.2]} 41. Nxe4+ {[%clk 0:00:42.7]} 41... Kf5
{[%clk 0:00:12.1]} 42. Kf3 {[%clk 0:00:41]} 42... Rc7 {[%clk 0:00:08.8]} 43. Rd1
{[%clk 0:00:40.1]} 43... Rd7 {[%clk 0:00:08.5]} 44. Nc5 {[%clk 0:00:38.9]} 44...
Rd8 {[%clk 0:00:07.7]} 45. Rxd3 {[%clk 0:00:38.1]} 1-0

[Event "Early-Titled-Tuesday-Blitz-January-30-2024"]
[Site "Chess.com"]
[Date "2024.01.30"]
[Round "11"]
[White "KorolDimitriy75"]
[Black "jaskol95"]
[Result "1/2-1/2"]
[WhiteElo "2376"]
[BlackElo "2534"]
[TimeControl "180+1"]
[EndTime "10:12:05 PST"]
[Termination "Game drawn by repetition"]

1. d4 {[%clk 0:03:00.9]} 1... d5 {[%clk 0:03:00.3]} 2. c4 {[%clk 0:03:00.7]}
2... e5 {[%clk 0:03:00.9]} 3. Nc3 {[%clk 0:03:01.4]} 3... exd4 {[%clk
0:02:55.4]} 4. Qxd4 {[%clk 0:03:02.3]} 4... Nc6 {[%clk 0:02:55.4]} 5. Qxd5
{[%clk 0:03:02.4]} 5... Be6 {[%clk 0:02:56.1]} 6. Qb5 {[%clk 0:03:02.2]} 6... a6
{[%clk 0:02:40.9]} 7. Qa4 {[%clk 0:03:02]} 7... Nf6 {[%clk 0:02:23.3]} 8. Bd2
{[%clk 0:02:50.1]} 8... Bc5 {[%clk 0:02:20.3]} 9. e3 {[%clk 0:02:49.8]} 9... O-O
{[%clk 0:02:20.3]} 10. Nf3 {[%clk 0:02:44]} 10... Nb4 {[%clk 0:02:08.1]} 11. Rc1
{[%clk 0:02:17.4]} 11... Re8 {[%clk 0:01:51.5]} 12. Qd1 {[%clk 0:01:29.3]} 12...
Nd3+ {[%clk 0:01:47.8]} 13. Bxd3 {[%clk 0:01:29.2]} 13... Qxd3 {[%clk
0:01:48.7]} 14. b3 {[%clk 0:01:20.5]} 14... Ba3 {[%clk 0:01:46.1]} 15. Qc2
{[%clk 0:01:06.9]} 15... Bf5 {[%clk 0:01:36.4]} 16. Qxd3 {[%clk 0:01:05.2]}
16... Bxd3 {[%clk 0:01:37.3]} 17. Rd1 {[%clk 0:00:58.7]} 17... Bc2 {[%clk
0:01:37]} 18. Ke2 {[%clk 0:00:55.2]} 18... Bxd1+ {[%clk 0:01:34.1]} 19. Rxd1
{[%clk 0:00:56.1]} 19... Rad8 {[%clk 0:01:34.2]} 20. h3 {[%clk 0:00:50]} 20...
Bb4 {[%clk 0:01:33.2]} 21. Rc1 {[%clk 0:00:49.5]} 21... Rd7 {[%clk 0:01:22.7]}
22. Rc2 {[%clk 0:00:45.1]} 22... Red8 {[%clk 0:01:18.8]} 23. Be1 {[%clk
0:00:43.6]} 23... Bxc3 {[%clk 0:01:01.1]} 24. Bxc3 {[%clk 0:00:41.2]} 24... Rd1
{[%clk 0:01:00.9]} 25. Bxf6 {[%clk 0:00:31.4]} 25... gxf6 {[%clk 0:01:00.9]} 26.
h4 {[%clk 0:00:31.5]} 26... Ra1 {[%clk 0:00:54.2]} 27. g3 {[%clk 0:00:27.4]}
27... c5 {[%clk 0:00:51.4]} 28. Nd2 {[%clk 0:00:20.6]} 28... f5 {[%clk
0:00:49.7]} 29. Nf3 {[%clk 0:00:17.6]} 29... f6 {[%clk 0:00:50]} 30. Ne1 {[%clk
0:00:15]} 30... Rad1 {[%clk 0:00:33.9]} 31. Ng2 {[%clk 0:00:12.3]} 31... Kf7
{[%clk 0:00:32.4]} 32. Nf4 {[%clk 0:00:12.4]} 32... Ra1 {[%clk 0:00:30.8]} 33.
Nd5 {[%clk 0:00:11.9]} 33... a5 {[%clk 0:00:30.6]} 34. Nc3 {[%clk 0:00:09]}
34... Ke6 {[%clk 0:00:28.6]} 35. Kf3 {[%clk 0:00:08]} 35... Ke5 {[%clk
0:00:25.2]} 36. Ke2 {[%clk 0:00:07.4]} 36... Ke6 {[%clk 0:00:25.1]} 37. Kf3
{[%clk 0:00:07.7]} 37... Rd3 {[%clk 0:00:25.3]} 38. Ke2 {[%clk 0:00:07.4]} 38...
Rd8 {[%clk 0:00:18.6]} 1/2-1/2

[Event "Early-Titled-Tuesday-Blitz-January-30-2024"]
[Site "Chess.com"]
[Date "2024.01.30"]
[Round "11"]
[White "MaxLeto"]
[Black "frequentblunders"]
[Result "1-0"]
[WhiteElo "2374"]
[BlackElo "2176"]
[TimeControl "180+1"]
[EndTime "10:12:06 PST"]
[Termination "MaxLeto won on time"]

1. h4 {[%clk 0:03:00.9]} 1... d5 {[%clk 0:02:55.6]} 2. h5 {[%clk 0:03:01.8]}
2... e5 {[%clk 0:02:48.2]} 3. d4 {[%clk 0:03:01.1]} 3... e4 {[%clk 0:02:47.7]}
4. h6 {[%clk 0:03:01.5]} 4... g6 {[%clk 0:02:47.5]} 5. c4 {[%clk 0:03:01.1]}
5... c6 {[%clk 0:02:47.2]} 6. Nc3 {[%clk 0:03:01.5]} 6... Nf6 {[%clk 0:02:38.1]}
7. Bg5 {[%clk 0:03:01.5]} 7... Be7 {[%clk 0:02:36.3]} 8. e3 {[%clk 0:02:57.1]}
8... O-O {[%clk 0:02:24.4]} 9. Nh3 {[%clk 0:02:52.7]} 9... a6 {[%clk 0:02:23.3]}
10. Nf4 {[%clk 0:02:51.1]} 10... Be6 {[%clk 0:02:22.4]} 11. Qb3 {[%clk
0:02:30.1]} 11... dxc4 {[%clk 0:02:10.7]} 12. Qxb7 {[%clk 0:02:29.7]} 12... Nbd7
{[%clk 0:01:52.2]} 13. Nxe6 {[%clk 0:02:29.3]} 13... fxe6 {[%clk 0:01:52.1]} 14.
Qxc6 {[%clk 0:02:24.1]} 14... Rc8 {[%clk 0:01:44.9]} 15. Qxe6+ {[%clk
0:02:23.2]} 15... Kh8 {[%clk 0:01:44.4]} 16. Bxc4 {[%clk 0:02:20.5]} 16... Nb6
{[%clk 0:01:32.2]} 17. Bxa6 {[%clk 0:02:14.8]} 17... Rc7 {[%clk 0:01:17.7]} 18.
O-O {[%clk 0:02:04.6]} 18... Nfd5 {[%clk 0:01:11.9]} 19. Qe5+ {[%clk 0:01:57]}
19... Bf6 {[%clk 0:00:45.4]} 20. Bxf6+ {[%clk 0:01:49.4]} 20... Rxf6 {[%clk
0:00:42]} 21. Nxd5 {[%clk 0:01:36.3]} 21... Nxd5 {[%clk 0:00:40.4]} 22. Qxe4
{[%clk 0:01:29.4]} 22... Re7 {[%clk 0:00:36.7]} 23. Qd3 {[%clk 0:00:56]} 23...
Nb4 {[%clk 0:00:36.5]} 24. Qa3 {[%clk 0:00:47.7]} 24... Nxa6 {[%clk 0:00:32.7]}
25. Rac1 {[%clk 0:00:48.2]} 25... Nc7 {[%clk 0:00:24.4]} 26. Rc4 {[%clk
0:00:38.7]} 26... Qd6 {[%clk 0:00:11.8]} 27. Qc3 {[%clk 0:00:21.5]} 27... Kg8
{[%clk 0:00:06.8]} 28. Rc1 {[%clk 0:00:20.8]} 28... Nd5 {[%clk 0:00:06.3]} 29.
Rc8+ {[%clk 0:00:21.7]} 29... Rf8 {[%clk 0:00:06.5]} 30. Qb3 {[%clk 0:00:20.4]}
30... Ree8 {[%clk 0:00:04.1]} 31. R8c6 {[%clk 0:00:19.5]} 31... Qd7 {[%clk
0:00:03.1]} 32. R6c5 {[%clk 0:00:18.7]} 32... Rd8 {[%clk 0:00:01.9]} 33. e4
{[%clk 0:00:19.1]} 1-0